bitfinex/quotes_ETHUSD_20260310
["timestamp","ask_amount","ask_price","bid_price","bid_amount"]
[1773158401979,0.46779711,2080.6,2079.0,5.144536]
[1773158402181,0.46779711,2080.6,2079.0,5.079]
[1773158402684,0.46779711,2080.6,2079.6,1.101]
[1773158402861,0.002,2080.6,2079.6,1.101]
[1773158403064,0.002,2080.6,2079.7,0.04808385]
[1773158403065,1.70358048,2080.6,2079.7,0.04808385]
[1773158403387,0.50199999,2080.6,2079.8,0.04808154]
[1773158403684,0.002,2080.6,2079.8,1.20203865]
[1773158403884,0.002,2080.7,2079.9,2.31248843]
[1773158404084,0.004,2080.7,2079.9,2.31248843]
[1773158404597,0.002,2080.7,2079.9,2.31248843]
[1773158404801,0.004,2080.7,2079.9,2.31248843]
[1773158404981,0.004,2080.7,2080.0,0.04807692]
[1773158405185,0.50199999,2080.6,2079.8,1.20203865]
[1773158405389,0.50199999,2080.6,2079.6,1.20215426]
[1773158405572,1.20163422,2080.5,2079.8,1.20203865]
[1773158405767,0.49999999,2080.4,2079.9,0.04807923]
[1773158406094,0.49999999,2080.4,2079.5,0.001]
[1773158406095,0.50199999,2080.4,2079.6,1.20215426]
[1773158406294,0.50199999,2080.4,2079.7,0.04808385]
[1773158406501,0.002,2080.4,2079.7,0.04808385]
[1773158406669,0.002,2080.4,2079.9,2.31248843]
[1773158406873,0.002,2080.7,2080.0,0.04807692]
[1773158407089,0.002,2080.6,2079.6,1.20215426]
[1773158407280,0.002,2080.6,2079.8,2.31248843]
[1773158407573,0.002,2080.6,2080.2,1.20180751]
[1773158407998,0.002,2080.7,2080.2,1.20180751]
[1773158409009,2.50593563,2081.8,2080.4,2.31248843]
[1773158409010,0.50623975,2081.5,2080.4,2.31248843]
[1773158409189,0.46579711,2082.1,2080.9,0.49120782]
[1773158409577,1.20076849,2082.0,2081.0,1.2013455]
[1773158409772,0.46579711,2081.9,2081.0,1.2013455]
[1773158410716,1.20076849,2082.0,2081.1,0.49120782]
[1773158410717,0.002,2081.8,2081.1,0.49120782]
[1773158411006,0.46779711,2081.8,2081.0,1.69255332]
[1773158411202,0.002,2081.7,2081.1,0.49120782]
[1773158411577,0.002,2081.7,2081.2,1.20123005]
[1773158411903,0.002,2081.6,2081.2,1.20123005]
[1773158412121,4.80214599,2082.5,2081.2,1.20123005]
[1773158412122,0.46579711,2082.7,2081.5,0.49120782]
[1773158412328,0.46579711,2082.7,2081.7,0.49120782]
[1773158412492,0.46579711,2082.5,2081.3,0.49120782]
[1773158412814,0.46579711,2082.0,2081.2,1.20123005]
[1773158413413,0.46579711,2082.0,2080.8,2.80166879]
[1773158413782,0.46579711,2081.8,2080.9,0.49120782]
[1773158414413,0.002,2081.4,2080.9,0.49120782]
[1773158415320,0.46779711,2081.4,2080.4,1.20169198]
[1773158415618,0.46779711,2081.4,2080.3,2.80491308]
[1773158415776,0.46579711,2081.2,2080.5,1.20163422]
[1773158415984,0.46579711,2081.1,2080.3,2.31372115]
[1773158416615,0.46579711,2080.8,2080.0,1.20188064]
[1773158416812,0.46579711,2080.8,2079.9,1.20294347]
[1773158417816,2.31248843,2080.5,2079.9,0.001]
[1773158417985,0.46579711,2080.4,2079.9,0.001]
[1773158418184,0.46579711,2080.4,2079.7,1.20205081]
[1773158418504,0.46579711,2080.4,2079.6,1.20315108]
[1773158418505,0.46579711,2080.3,2079.6,1.20315108]
[1773158419017,0.46579711,2080.3,2079.6,0.001]
[1773158420008,0.4689775,2080.1,2079.6,0.001]
[1773158422114,1.67049753,2080.7,2079.6,0.4809802]
[1773158422431,1.67049753,2080.7,2079.8,0.4799802]
[1773158423802,0.4689775,2080.6,2079.8,0.4799802]
[1773158424004,1.20163422,2080.5,2079.6,1.20315426]
[1773158424314,0.4689775,2080.4,2079.6,0.001]
[1773158425010,0.4689775,2080.2,2079.6,0.001]
[1773158426220,0.4689775,2080.0,2079.6,0.001]
[1773158426907,0.4689775,2079.8,2079.4,0.001]
[1773158427087,0.4689775,2080.3,2079.4,0.001]
[1773158427825,0.4689775,2080.1,2079.4,0.001]
[1773158428020,0.4689775,2080.1,2079.8,0.001]
[1773158428516,1.20192307,2080.0,2079.8,0.001]
[1773158429024,1.67090057,2080.0,2079.8,0.001]
[1773158429225,0.4689775,2080.2,2079.8,0.001]
[1773158429389,1.67066948,2080.4,2079.8,0.001]
[1773158430622,0.39320315,2080.4,2079.8,0.001]
[1773158431209,1.59489971,2080.4,2079.8,0.001]
[1773158431596,0.4689775,2080.3,2079.8,0.001]
[1773158432848,1.67078501,2080.2,2079.8,0.001]
[1773158433129,0.4689775,2080.1,2079.8,0.001]
[1773158433615,0.4689775,2080.1,2079.5,0.001]
[1773158434119,0.4689775,2080.1,2079.5,1.2031956]
[1773158434619,0.4689775,2080.1,2079.5,0.001]
[1773158434797,0.4689775,2080.1,2079.5,1.20320172]
[1773158435198,0.4689775,2080.1,2079.5,0.001]
[1773158435399,0.4689775,2079.9,2079.5,0.001]
[1773158436224,0.4689775,2079.9,2079.3,1.15532284]
[1773158436529,1.20192307,2080.0,2079.1,0.001]
[1773158436530,0.4689775,2079.7,2079.1,0.001]
[1773158436737,0.4689775,2079.7,2079.1,1.20343086]
[1773158436899,0.4689775,2079.7,2079.1,1.20342947]
[1773158437228,0.4689775,2079.5,2078.9,0.001]
[1773158437525,0.4689775,2079.3,2078.9,0.001]
[1773158438516,1.20222527,2079.5,2078.9,0.001]
[1773158438717,0.4689775,2079.6,2078.9,0.001]
[1773158439234,1.20211756,2079.7,2078.9,0.44999112]
[1773158439526,5.27733032,2079.8,2079.0,1.2025012]
[1773158439929,0.4689775,2079.7,2079.0,1.2025012]
[1773158440625,1.6709965,2079.9,2079.1,0.44899112]
[1773158441033,1.6709965,2079.9,2079.0,1.2025012]
[1773158441034,0.4689775,2079.8,2079.0,1.2025012]
[1773158441500,1.20209645,2079.7,2078.9,4.81100481]
[1773158441699,0.4689775,2079.6,2079.0,0.04810004]
[1773158441905,0.4689775,2079.6,2078.9,0.001]
[1773158443850,0.4689775,2079.4,2079.1,0.001]
[1773158444634,0.4689775,2079.4,2078.9,0.001]
[1773158445335,4.80841675,2079.7,2078.9,0.001]
[1773158445336,0.4689775,2079.7,2078.9,0.44999112]
[1773158445543,0.49692468,2079.3,2078.9,0.001]
[1773158445702,1.20215426,2079.6,2078.9,0.001]
[1773158445899,0.49692468,2079.5,2078.9,0.001]
[1773158447212,4.80992175,2080.1,2078.9,0.44999112]
[1773158447213,4.80776436,2080.0,2078.9,0.44999112]
[1773158447536,1.20192307,2080.0,2079.1,0.44899112]
[1773158447724,1.20192307,2080.0,2079.2,1.65137665]
[1773158448248,1.69884775,2080.0,2079.2,1.65137665]
[1773158449504,1.20388573,2080.1,2079.3,0.44899112]
[1773158449707,1.68654475,2080.1,2079.4,1.20226988]
[1773158450934,0.002,2080.3,2079.4,1.20226988]
[1773158450935,0.002,2080.3,2079.5,0.44699112]
[1773158451613,0.002,2080.3,2079.7,0.44699112]
[1773158451816,0.002,2080.3,2079.9,0.44699112]
[1773158452216,0.002,2080.3,2079.8,1.118]
[1773158454818,0.002,2080.3,2079.9,1.20198086]
[1773158455623,0.48465902,2080.3,2079.5,0.44699112]
[1773158455938,0.48465902,2080.3,2079.5,1.20218333]
[1773158456131,0.48465902,2080.3,2079.4,1.2022387]
[1773158456728,0.002,2080.1,2079.4,1.2022387]
[1773158457545,0.48465902,2080.1,2079.4,1.2022387]
[1773158457746,0.002,2080.3,2079.5,0.4950796]
[1773158458329,0.002,2080.3,2079.5,0.44699112]
[1773158458517,0.002,2080.6,2079.8,2.31345055]
[1773158458735,0.002,2080.6,2080.0,1.20192307]
[1773158458920,0.002,2080.6,2080.0,2.31992307]
[1773158459115,0.002,2080.6,2080.0,2.76491419]
[1773158459321,0.002,2080.6,2080.1,0.44499112]
[1773158460952,1.20335196,2081.0,2080.1,0.44499112]
[1773158460953,0.002,2081.0,2080.3,0.44499112]
[1773158461132,0.002,2081.4,2080.4,0.44499112]
[1773158461331,1.20311944,2081.4,2080.4,0.44499112]
[1773158461752,0.002,2081.4,2080.6,0.44499112]
[1773158461949,0.002,2081.4,2080.8,0.44499112]
[1773158462751,0.002,2081.4,2080.9,1.20140323]
[1773158462950,5.28623344,2081.8,2081.0,0.44499112]
[1773158462951,0.48265902,2081.8,2081.0,0.44499112]
[1773158463150,1.68354664,2081.8,2081.0,0.44499112]
[1773158463453,1.68354604,2081.8,2081.0,0.44499112]
[1773158464458,0.48265902,2081.8,2081.0,0.44499112]
[1773158464634,1.68354774,2081.8,2081.0,0.44499112]
[1773158464955,1.68354774,2081.8,2081.1,1.20128778]
[1773158465449,0.48265902,2081.8,2081.1,1.20128778]
[1773158465750,1.68340695,2082.1,2081.2,0.39951286]
[1773158466048,1.68340695,2082.1,2081.3,1.118]
[1773158466223,0.48265902,2082.0,2081.3,1.118]
[1773158466419,0.48265902,2082.0,2081.1,1.118]
[1773158467058,1.20082616,2081.9,2081.1,2.31923049]
[1773158467256,0.48265902,2081.8,2081.1,2.31923049]
[1773158467624,0.48265902,2081.8,2080.9,1.60088328]
[1773158467825,0.48265902,2081.6,2080.5,0.39951286]
[1773158468162,0.48265902,2081.6,2080.6,1.118]
[1773158468649,0.48265902,2081.6,2081.2,0.001]
[1773158468852,2.31345055,2081.3,2080.5,0.04806536]
[1773158469055,1.20128778,2081.1,2080.3,1.20170407]
[1773158469227,0.48265902,2081.0,2080.3,2.31970407]
[1773158469429,0.48265902,2081.5,2080.4,0.44758053]
[1773158469646,0.48265902,2081.5,2080.7,0.001]
[1773158469647,0.48265902,2081.3,2080.7,0.001]
[1773158469937,1.20109542,2081.5,2080.7,0.04906074]
[1773158470154,0.48265902,2081.4,2080.7,0.001]
[1773158471571,1.20117234,2081.3,2080.7,0.001]
[1773158471741,1.68383136,2081.3,2080.7,0.001]
[1773158471943,1.68568777,2081.6,2080.7,0.40051286]
[1773158472245,1.68568777,2081.6,2080.9,0.39951286]
[1773158472246,0.002,2081.6,2080.9,0.39951286]
[1773158472475,0.002,2081.6,2081.0,1.51751286]
[1773158473674,0.002,2081.6,2081.1,1.20128778]
[1773158474440,0.002,2081.6,2081.1,1.60080064]
[1773158474843,0.002,2081.6,2081.1,1.20128778]
[1773158475046,0.48465902,2081.6,2081.0,2.31931277]
[1773158475235,0.48465902,2081.6,2080.9,1.118]
[1773158475778,1.20105693,2081.5,2080.9,2.31934665]
[1773158475955,1.20105693,2081.5,2080.7,0.001]
[1773158475956,0.48265902,2081.4,2080.7,0.001]
[1773158476278,0.48265902,2081.4,2080.7,1.20250585]
[1773158476765,0.48265902,2081.4,2080.1,3.43145055]
[1773158476766,0.48265902,2081.4,2080.1,1.20182106]
[1773158476767,0.48265902,2081.3,2080.1,1.20182106]
[1773158476964,2.31345055,2081.4,2079.3,4.81030026]
[1773158476965,0.48265902,2080.2,2079.3,0.001]
[1773158477131,0.48265902,2080.2,2079.3,1.20331971]
[1773158477532,0.48265902,2080.1,2079.3,0.001]
[1773158477766,0.48265902,2079.9,2079.3,0.001]
[1773158478551,1.68450705,2080.2,2079.3,0.001]
[1773158478751,0.48265902,2080.2,2079.3,2.31445055]
[1773158478954,0.48265902,2080.6,2079.4,0.45780396]
[1773158479338,0.48265902,2080.6,2079.6,2.72316372]
[1773158479746,1.20149028,2080.8,2079.7,1.20209645]
[1773158479950,1.66469286,2080.9,2079.8,0.45779471]
[1773158480173,1.66469286,2080.9,2079.8,0.40971317]
[1773158481376,1.66469286,2080.9,2079.9,1.117]
[1773158481674,1.66469286,2080.9,2080.0,1.20192307]
[1773158481973,0.46325463,2080.8,2080.0,1.20192307]
[1773158482274,4.80488522,2081.3,2080.3,0.4962981]
[1773158482275,1.20117234,2081.3,2080.3,0.4962981]
[1773158482473,1.20111837,2081.4,2080.4,0.54436577]
[1773158482654,1.2010994,2081.5,2080.4,0.54436577]
[1773158483048,0.46325463,2081.4,2080.4,0.4962981]
[1773158483844,0.002,2080.7,2080.5,1.20163422]
[1773158484563,0.002,2080.7,2080.2,1.20180751]
[1773158485273,0.002,2080.7,2080.2,4.01155616]
[1773158485576,0.002,2080.7,2080.2,1.69810561]
[1773158486273,0.002,2080.7,2079.9,1.118]
[1773158486274,0.46325463,2080.6,2079.9,1.118]
[1773158486473,0.46325463,2080.2,2079.6,0.001]
[1773158486677,2.77670518,2080.0,2079.4,0.001]
[1773158487107,0.52879063,2080.6,2079.4,1.20326691]
[1773158487251,0.46325463,2080.4,2079.4,1.20325488]
[1773158487456,0.46325463,2080.4,2079.4,1.20324419]
[1773158487658,0.46325463,2080.4,2079.4,1.20424419]
[1773158487852,0.46325463,2080.4,2079.4,0.002]
[1773158488205,1.20174974,2080.3,2079.4,0.002]
[1773158488784,0.46325463,2080.2,2079.4,0.002]
[1773158490387,1.20186529,2080.1,2079.4,0.002]
[1773158490889,1.20169198,2080.4,2079.4,0.4982981]
[1773158491064,1.20356441,2080.7,2079.7,0.4962981]
[1773158491385,1.20354145,2080.7,2079.7,0.4962981]
[1773158491584,0.002,2080.7,2079.7,0.4962981]
[1773158491761,1.20351947,2080.7,2079.8,0.001]
[1773158492494,1.6667741,2080.7,2079.8,0.001]
[1773158492699,1.20354623,2080.7,2079.8,0.001]
[1773158493063,1.20354623,2080.7,2079.3,4.80961704]
[1773158493064,0.46325463,2079.8,2079.0,0.001]
[1773158493267,0.46325463,2079.7,2079.0,0.001]
[1773158494056,0.46325463,2079.5,2079.0,0.001]
[1773158494500,1.20226988,2079.4,2079.0,0.001]
[1773158494714,1.20226988,2079.4,2078.6,0.001]
[1773158494715,0.46325463,2079.2,2078.6,0.001]
[1773158495485,1.20226988,2079.4,2078.6,0.001]
[1773158495686,3.51572043,2079.4,2078.6,0.001]
[1773158495871,0.46325463,2079.3,2078.6,0.001]
[1773158496560,0.46325463,2079.3,2079.0,0.001]
[1773158496886,1.20438553,2079.2,2079.0,0.001]
[1773158497480,0.002,2079.2,2078.8,0.001]
[1773158499060,0.46525463,2079.2,2078.8,0.001]
[1773158499256,0.002,2079.2,2078.6,0.001]
[1773158501691,0.46525463,2079.2,2078.6,0.001]
[1773158502407,0.46525463,2079.2,2077.8,0.001]
[1773158502408,0.46325463,2078.6,2077.8,0.001]
[1773158502569,6.94485279,2079.0,2077.8,0.001]
[1773158502570,2.77820556,2077.9,2077.8,0.001]
[1773158502894,2.77820556,2077.9,2077.5,0.001]
[1773158503071,2.77820556,2077.9,2077.3,0.001]
[1773158503072,0.46325463,2077.7,2077.3,0.001]
[1773158503274,0.46325463,2077.5,2076.2,8.58641393]
[1773158503467,2.69065583,2077.5,2076.4,0.4962981]
[1773158503796,2.2274012,2077.5,2076.4,0.4962981]
[1773158504096,2.69065583,2077.5,2076.3,1.20402982]
[1773158504269,0.46325463,2077.4,2076.3,1.20402982]
[1773158505097,1.2034012,2077.5,2076.3,1.70032792]
[1773158505818,0.46325463,2077.4,2076.3,1.20402982]
[1773158506298,8.15242866,2077.6,2076.4,2.81124903]
[1773158506299,1.2033522,2077.6,2076.4,2.81124903]
[1773158506495,1.20326423,2077.7,2076.5,0.4962981]
[1773158507376,4.54186212,2077.8,2076.5,0.4962981]
[1773158507577,0.32968321,2077.8,2076.8,0.47564682]
[1773158508098,0.32968321,2077.8,2077.1,0.47564682]
[1773158508997,0.32968321,2077.8,2076.6,3.5188419]
[1773158508998,1.20286849,2078.4,2077.3,0.47564682]
[1773158509704,1.20279047,2078.5,2077.4,1.20342736]
[1773158510369,0.46704177,2078.4,2077.4,1.20342736]
[1773158511695,1.20290622,2078.3,2077.3,4.81370944]
[1773158512194,1.20290622,2078.3,2077.3,5.30159564]
[1773158512999,1.20288822,2078.4,2077.4,0.4878862]
[1773158514192,0.46704177,2078.4,2077.2,1.106]
[1773158514394,0.46704177,2078.4,2077.2,1.20350784]
[1773158514697,2.31642132,2078.5,2077.2,1.20350784]
[1773158514698,0.46704177,2078.2,2077.2,1.20350784]
[1773158516679,1.67006376,2078.1,2077.0,1.20365912]
[1773158517314,0.46704177,2078.0,2077.0,1.20365912]
[1773158517810,0.46704177,2078.0,2076.9,1.20371417]
[1773158518508,0.46704177,2078.0,2076.8,1.20375457]
[1773158518814,0.46704177,2077.8,2076.8,1.20375457]
[1773158520179,0.46704177,2077.8,2076.6,4.81510015]
[1773158520180,0.46704177,2077.8,2076.6,1.20389097]
[1773158520832,1.20321012,2077.8,2076.8,0.4878862]
[1773158521022,0.46704177,2077.7,2076.5,5.30455195]
[1773158521311,0.46704177,2077.7,2076.5,0.001]
[1773158521499,0.46704177,2077.3,2076.5,0.001]
[1773158521901,0.46704177,2077.3,2077.0,0.001]
[1773158522104,0.46704177,2077.3,2076.5,0.001]
[1773158522612,0.46704177,2077.3,2076.7,0.001]
[1773158522908,1.20354323,2077.2,2076.7,0.001]
[1773158523508,1.67056827,2077.3,2076.7,0.001]
[1773158523918,0.46704177,2077.2,2076.7,0.001]
[1773158524121,2.31642132,2077.1,2076.7,0.001]
[1773158524413,0.46704177,2077.0,2076.5,0.001]
[1773158524916,1.20371707,2076.9,2076.5,0.001]
[1773158526099,1.67075884,2076.9,2076.5,0.001]
[1773158526611,1.20370059,2077.0,2076.5,0.001]
[1773158526804,1.20377503,2076.8,2076.5,0.001]
[1773158527001,5.28214192,2076.9,2076.5,0.001]
[1773158527002,1.67080334,2076.9,2076.5,0.001]
[1773158527207,1.49204177,2077.4,2076.5,0.001]
[1773158527718,0.46704177,2077.4,2076.5,0.001]
[1773158527953,0.46704177,2077.4,2076.3,0.4888862]
[1773158527954,0.46704177,2076.8,2076.3,0.001]
[1773158528586,0.46704177,2077.2,2076.3,0.001]
[1773158528785,1.67060456,2077.2,2076.3,0.001]
[1773158529020,4.96273104,2077.9,2076.3,0.50418482]
[1773158529021,1.20342736,2077.4,2076.3,0.50418482]
[1773158529209,1.20342736,2077.4,2076.3,0.4888862]
[1773158529721,0.46704177,2077.3,2076.3,0.4888862]
[1773158530596,0.46704177,2077.3,2076.3,0.001]
[1773158531218,0.46704177,2077.3,2076.3,1.20506492]
[1773158531219,1.670585,2077.2,2076.3,1.20506492]
[1773158531389,1.670585,2077.2,2076.3,0.001]
[1773158532423,1.670585,2077.2,2076.0,0.4888862]
[1773158532424,0.46704177,2077.1,2076.0,0.001]
[1773158532601,0.46704177,2076.5,2076.0,0.001]
[1773158533331,1.20400693,2076.4,2076.0,0.001]
[1773158533828,1.6710311,2076.5,2076.0,0.001]
[1773158533995,1.20389097,2076.6,2076.0,0.001]
[1773158534396,1.20389097,2076.6,2076.5,0.001]
[1773158534588,1.20389097,2076.6,2076.0,0.001]
[1773158534791,2.23070453,2077.0,2076.3,0.001]
[1773158535014,1.20569761,2077.0,2076.3,0.001]
[1773158536322,0.46704177,2076.9,2076.3,0.001]
[1773158537517,1.20570157,2077.0,2076.3,0.001]
[1773158539625,0.49664909,2076.9,2076.3,0.001]
[1773158540327,0.002,2077.0,2076.3,0.48032598]
[1773158541632,0.002,2077.0,2076.4,1.68333291]
[1773158542023,0.002,2077.0,2076.4,1.20400693]
[1773158543520,0.002,2077.0,2076.3,4.81702774]
[1773158544200,0.002,2077.0,2076.3,0.001]
[1773158544417,0.49864909,2077.0,2076.3,0.001]
[1773158545034,0.49864909,2077.0,2076.0,5.91894902]
[1773158545035,0.49864909,2077.0,2076.0,1.2051979]
[1773158546114,0.49864909,2077.0,2076.0,0.48032598]
[1773158546436,1.70231506,2077.0,2076.0,0.48032598]
[1773158546636,1.70230986,2077.0,2076.0,0.48032598]
[1773158546803,0.002,2077.0,2076.2,0.47932598]
[1773158547109,0.002,2077.0,2076.5,0.001]
[1773158547314,0.002,2076.8,2076.5,0.001]
[1773158553105,0.002,2077.0,2076.5,0.48032598]
[1773158553535,0.002,2077.0,2076.6,0.52748161]
[1773158553748,0.002,2077.0,2076.5,1.103]
[1773158554234,0.002,2077.0,2076.6,0.47932598]
[1773158555138,0.002,2077.0,2076.7,1.203833]
[1773158555325,0.002,2077.0,2076.6,1.20387995]
[1773158556148,1e-08,2077.3,2076.6,1.20387995]
[1773158556357,1e-08,2077.3,2076.7,0.04815332]
[1773158556519,1e-08,2077.3,2076.7,0.5274793]
[1773158557244,1e-08,2077.3,2076.8,1.68310101]
[1773158557842,1e-08,2077.3,2076.9,1.103]
[1773158559052,1e-08,2077.3,2077.0,1.20365912]
[1773158559420,1.20304351,2078.1,2077.2,0.47932598]
[1773158559745,1.69965074,2078.2,2077.2,0.47932598]
[1773158560548,0.002,2077.3,2077.2,0.47932598]
[1773158560855,0.002,2077.6,2077.2,0.47932598]
[1773158561150,0.002,2077.6,2077.3,1.20348529]
[1773158561354,0.49664909,2078.2,2077.4,1.58432598]
[1773158561847,1.69962535,2078.2,2077.4,1.58432598]
[1773158562050,0.49664909,2078.2,2077.4,1.58432598]
[1773158562255,0.002,2079.7,2078.4,0.47932598]
[1773158562465,1.20235575,2079.3,2078.7,0.47932598]
[1773158562646,1.20439499,2079.2,2078.5,1.105]
[1773158563164,0.002,2079.2,2078.6,1.2027326]
[1773158563339,0.002,2079.2,2078.5,2.30777763]
[1773158564230,0.002,2079.2,2078.5,2.78710361]
[1773158565735,0.002,2079.2,2078.8,0.47932598]
[1773158565938,0.002,2079.2,2078.5,5.31815376]
[1773158566139,0.002,2079.2,2078.6,0.47932598]
[1773158566438,0.002,2079.2,2078.6,1.58532598]
[1773158567439,0.002,2079.2,2078.3,0.73064999]
[1773158567648,0.26841259,2079.1,2078.3,1.45290366]
[1773158568047,0.26841259,2079.1,2078.3,0.25]
[1773158568762,0.002,2079.2,2078.3,1.68354701]
[1773158569336,0.002,2079.2,2078.4,0.48441296]
[1773158569533,0.002,2079.2,2078.5,0.48441296]
[1773158569959,0.002,2079.2,2078.2,4.81175096]
[1773158569960,0.27041259,2079.2,2078.2,1.59141296]
[1773158571765,1.20244336,2079.1,2078.3,1.20290622]
[1773158571949,1.20244336,2079.1,2078.2,2.79433176]
[1773158572128,0.002,2079.0,2078.2,1.68733176]
[1773158572329,0.002,2079.0,2077.9,4.81253455]
[1773158572330,0.19341259,2078.8,2077.9,0.48441296]
[1773158572545,0.19341259,2078.8,2077.9,1.68754951]
[1773158572746,2.31623599,2079.0,2078.0,0.48441296]
[1773158573450,0.002,2079.0,2078.0,0.48441296]
[1773158573657,0.002,2079.0,2078.2,0.48441296]
[1773158573961,0.002,2079.0,2078.1,1.20302199]
[1773158573962,2.50964858,2079.0,2078.1,1.20302199]
[1773158574469,2.50964858,2079.0,2078.0,1.59141296]
[1773158574768,2.31423599,2078.7,2078.0,2.79449226]
[1773158574964,0.19341259,2078.9,2078.0,2.79449226]
[1773158575147,2.31623599,2079.0,2078.1,0.48441296]
[1773158575753,1.20255904,2078.9,2078.2,1.2029641]
[1773158576070,7.12647217,2079.0,2078.3,0.48441296]
[1773158576071,1.20453733,2079.0,2078.3,0.48441296]
[1773158576568,1.20453733,2079.0,2078.3,0.5325292]
[1773158576875,1.20451644,2079.0,2078.3,0.48441296]
[1773158577435,1.20451496,2079.0,2078.3,0.48441296]
[1773158577832,0.002,2079.0,2078.3,1.68729814]
[1773158578865,0.002,2079.0,2078.3,0.48441296]
[1773158579042,0.002,2079.0,2078.2,1.2029641]
[1773158579243,0.002,2079.0,2078.2,1.68737706]
[1773158579468,0.002,2079.0,2078.3,0.48441296]
[1773158579859,0.002,2079.0,2078.3,1.73539946]
[1773158580454,0.19541259,2079.0,2078.1,1.20297098]
[1773158580835,0.19541259,2079.0,2078.0,5.29660595]
[1773158581068,2.31423599,2078.5,2077.6,0.48441296]
[1773158581645,2.31423599,2078.2,2077.3,1.68789825]
[1773158581846,2.31423599,2078.2,2077.3,1.68786763]
[1773158581847,1.20302199,2078.1,2077.3,1.68786763]
[1773158582044,1.20302199,2078.1,2077.0,5.92163343]
[1773158582045,2.31423599,2077.9,2077.0,0.48441296]
[1773158582274,2.31423599,2077.9,2077.0,1.7362064]
[1773158582770,1.20302199,2078.1,2077.1,0.48441296]
[1773158582948,1.20302199,2078.1,2077.3,0.48441296]
[1773158583272,1.32893458,2078.1,2077.3,0.48441296]
[1773158583761,3.64317057,2078.1,2077.3,1.68787298]
[1773158584142,3.64317057,2078.1,2077.5,0.001]
[1773158584544,1.20302199,2078.1,2077.5,0.001]
[1773158584969,1.20301891,2078.2,2077.5,0.001]
[1773158585168,1.20301891,2078.2,2077.5,0.48541296]
[1773158585971,5.82877209,2078.3,2077.6,1.20331151]
[1773158585972,1.20293187,2078.3,2077.6,1.20331151]
[1773158586176,0.39106626,2078.2,2077.6,1.20331151]
[1773158586375,1.20293187,2078.3,2077.6,1.20331151]
[1773158586676,1.20293187,2078.3,2077.7,0.51677144]
[1773158586849,3.51716786,2078.3,2077.5,1.20432598]
[1773158587252,2.31423599,2078.0,2077.5,0.001]
[1773158587573,0.12591259,2078.1,2077.5,0.001]
[1773158587761,1.20293187,2078.3,2077.5,1.20432863]
[1773158587964,1.20302199,2078.1,2077.5,0.001]
[1773158588274,1.20302199,2078.1,2077.5,0.48541296]
[1773158590378,4.81163126,2078.3,2077.5,0.48541296]
[1773158590575,0.39129567,2078.2,2077.5,1.68877253]
[1773158590744,4.81163126,2078.3,2077.5,1.68877253]
[1773158590950,0.39129567,2078.2,2077.5,0.48541296]
[1773158591279,4.93754385,2078.3,2077.5,1.68878083]
[1773158591578,0.39126546,2078.2,2077.5,1.68878083]
[1773158591779,4.93754385,2078.3,2077.5,1.68878083]
[1773158591980,0.51717805,2078.2,2077.5,1.20436787]
[1773158592185,0.12591259,2078.2,2077.5,1.20436787]
[1773158592383,1.20301193,2078.2,2077.5,0.48541296]
[1773158592560,1.20301193,2078.2,2077.6,0.53254542]
[1773158592761,1.20301193,2078.2,2077.6,0.48441296]
[1773158592960,1.20301193,2078.2,2077.5,0.001]
[1773158593360,1.25790179,2078.2,2077.5,0.001]
[1773158593987,1.25790179,2078.2,2077.3,0.001]
[1773158593988,2.31423599,2077.8,2077.3,0.001]
[1773158594191,2.31423599,2077.8,2077.0,0.001]
[1773158594192,0.05388986,2077.7,2077.0,0.001]
[1773158594357,2.31423599,2077.5,2077.0,0.001]
[1773158594696,0.05388986,2077.4,2076.8,0.001]
[1773158595374,0.05388986,2077.4,2076.5,0.001]
[1773158595375,2.31423599,2077.2,2076.5,0.001]
[1773158596259,1.20360117,2077.1,2076.5,0.001]
[1773158599364,4.81440469,2077.5,2076.6,0.5156687]
[1773158599365,1.085536,2077.5,2076.6,0.5156687]
[1773158599794,0.39050657,2077.4,2076.6,0.5156687]
[1773158600012,1.085536,2077.5,2076.6,0.5156687]
[1773158600317,1.02,2077.5,2076.8,0.5156687]
[1773158600609,2.22340389,2077.5,2076.8,1.71940257]
[1773158600789,2.22340389,2077.5,2076.9,0.5156687]
[1773158601319,6.39022607,2077.8,2076.9,0.5156687]
[1773158601320,1.57741833,2077.8,2076.9,0.5156687]
[1773158601518,1.57741833,2077.8,2077.1,0.5156687]
[1773158601673,2.78061897,2077.8,2077.1,0.5156687]
[1773158602100,1.57741833,2077.8,2077.1,0.5156687]
[1773158602387,2.78062148,2077.8,2077.1,0.5156687]
[1773158602882,1.57741833,2077.8,2077.3,0.5156687]
[1773158603089,2.7806226,2077.8,2077.3,0.5156687]
[1773158604699,2.7806226,2077.8,2076.0,6.07411349]
[1773158604700,6.11685859,2077.8,2077.0,0.5156687]
[1773158605008,2.31423599,2077.2,2076.6,0.5156687]
[1773158605180,2.31423599,2077.5,2076.6,0.5156687]
[1773158605907,0.39792485,2077.4,2076.6,0.5156687]
[1773158606077,1.022,2077.4,2076.6,0.5156687]
[1773158606804,1.20348529,2077.3,2076.6,1.71955709]
[1773158607110,1.20348529,2077.3,2076.7,0.5156687]
[1773158607308,1.023,2077.6,2076.7,0.56382202]
[1773158607901,1.023,2077.6,2076.7,0.5156687]
[1773158608417,1.023,2077.6,2076.8,0.04198708]
[1773158608711,1.023,2077.6,2076.9,0.5156687]
[1773158609006,2.78063337,2077.8,2077.1,0.5156687]
[1773158609206,0.39858259,2077.7,2077.1,0.5156687]
[1773158609391,5.09486936,2077.8,2077.1,0.5156687]
[1773158609593,0.39858259,2077.7,2077.1,0.5156687]
[1773158609814,5.09486936,2077.8,2077.1,0.5156687]
[1773158610010,0.39858259,2077.7,2076.9,1.20367382]
[1773158610182,5.09486936,2077.8,2076.8,1.71939924]
[1773158610382,5.09486936,2077.8,2076.9,0.5156687]
[1773158610383,0.3986268,2077.7,2076.9,0.5156687]
[1773158610578,5.09486936,2077.8,2076.9,0.5156687]
[1773158610579,0.002,2077.5,2076.9,0.5156687]
[1773158611010,0.002,2077.5,2076.8,0.001]
[1773158611220,0.39905522,2077.4,2076.8,1.20476279]
[1773158611387,0.002,2077.5,2076.8,1.74346451]
[1773158611588,0.39958884,2077.4,2076.8,1.69531351]